fUST/lending_fUST_20250801
["ID","MTS","AMOUNT","RATE_DAILY","PERIOD"]
[376532607,1754009443081,-460.0,0.00020272,2]
[376532611,1754009443091,-460.0,0.00020272,2]
[376532615,1754009443100,-460.0,0.00020272,2]
[376532619,1754009443110,-747.79064486,0.00020272,2]
[376532622,1754009443119,-460.0,0.00020273,2]
[376532624,1754009443129,-460.0,0.00020273,2]
[376532627,1754009443138,-431.74,0.00020273,2]
[376532628,1754009443148,-460.0,0.00020273,2]
[376532630,1754009443158,-460.0,0.00020447,2]
[376532633,1754009443168,-460.0,0.00020447,2]
[376532635,1754009443178,-460.0,0.00020546,2]
[376532637,1754009443188,-460.0,0.00020547,2]
[376532639,1754009443198,-460.0,0.00020547,2]
[376532641,1754009443207,-460.0,0.00020547,2]
[376532643,1754009443217,-460.0,0.00020721,2]
[376532645,1754009443226,-460.0,0.00020721,2]
[376532647,1754009443236,-420.0,0.00020791,2]
[376532649,1754009443246,-460.0,0.00020821,2]
[376532651,1754009443258,-460.0,0.00020821,2]
[376532653,1754009443268,-460.0,0.00020821,2]
[376532655,1754009443277,-160.0,0.000209,2]
[376532657,1754009443287,-780.80168607,0.00020908,2]
[376532659,1754009443300,-460.0,0.00020995,2]
[376532661,1754009443311,-460.0,0.00020995,2]
[376532663,1754009443320,-162.0,0.00021,3]
[376532665,1754009443331,-166.26503326,0.00021,3]
[376532667,1754009443340,-200.107859,0.00021005,2]
[376532669,1754009443351,-460.0,0.00021095,2]
[376532671,1754009443360,-460.0,0.00021095,2]
[376532673,1754009443370,-460.0,0.00021095,2]
[376532675,1754009443385,-460.0,0.00021269,2]
[376532677,1754009443404,-460.0,0.00021269,2]
[376532679,1754009443413,-552.06,0.00021369,2]
[376532681,1754009443423,-460.0,0.00021369,2]
[376532683,1754009443432,-460.0,0.00021369,2]
[376532685,1754009443442,-260.0,0.00021448,2]
[376532688,1754009443452,-200.0,0.00021478,15]
[376532690,1754009443461,-200.0,0.00021478,15]
[376532692,1754009443471,-200.0,0.00021478,15]
[376532694,1754009443481,-200.0,0.00021478,15]
[376532695,1754009443491,-320.0,0.00021478,15]
[376532697,1754009443503,-460.0,0.00021543,2]
[376532700,1754009443513,-537.54002185,0.00021543,2]
[376532702,1754009443523,-226.82,0.00021643,2]
[376532704,1754009443533,-460.0,0.00021643,2]
[376532706,1754009443543,-155.013,0.00021677,2]
[376532708,1754009443553,-460.0,0.00021817,2]
[376532710,1754009443562,-240.0,0.00021996,2]
[376532712,1754009443572,-460.0,0.00022091,2]
[376532714,1754009443582,-460.0,0.00022365,2]
[376532716,1754009443591,-500.0,0.00022611,2]
[376532718,1754009443601,-460.0,0.00022639,2]
[376532720,1754009443610,-587.0,0.00022661,2]
[376532722,1754009443620,-460.0,0.00022913,2]
[376532724,1754009443630,-162.0,0.00023,4]
[376532726,1754009443644,-162.0,0.00023,4]
[376532728,1754009443654,-460.0,0.00023187,2]
[376532730,1754009443664,-500.0,0.00023287,2]
[376532732,1754009443673,-460.0,0.00023461,2]
[376532734,1754009443683,-200.0,0.00023584,15]
[376532736,1754009443694,-200.0,0.00023584,15]
[376532738,1754009443703,-200.0,0.00023584,15]
[376532740,1754009443713,-200.0,0.00023584,15]
[376532742,1754009443722,-200.0,0.00023584,15]
[376532744,1754009443732,-200.0,0.00023584,15]
[376532746,1754009443741,-366.0,0.00023584,15]
[376532748,1754009443754,-504.57,0.00023693,7]
[376532750,1754009443764,-832.25,0.000237,7]
[376532752,1754009443773,-460.0,0.00023735,2]
[376532754,1754009443784,-504.57,0.00023793,7]
[376532756,1754009443794,-504.57,0.00023893,7]
[376532759,1754009443803,-150.42723835,0.000239,2]
[376532761,1754009443814,-504.57,0.00023993,7]
[376532763,1754009443823,-460.0,0.00024009,2]
[376532765,1754009443832,-209.1572519,0.00024067,2]
[376532767,1754009443842,-504.57,0.00024093,7]
[376532769,1754009443851,-504.58,0.00024193,7]
[376532771,1754009443860,-460.0,0.00024283,2]
[376532773,1754009443870,-160.0,0.0002445,3]
[376532775,1754009443881,-204.10645965,0.0002445,5]
[376532777,1754009443890,-460.0,0.00024557,2]
[376532779,1754009443900,-168.0,0.00024576,2]
[376532781,1754009443910,-200.0,0.00024658,15]
[376532783,1754009443920,-823.0,0.00024698,2]
[376532801,1754009444081,-160.0,0.00024756,2]
[376532803,1754009444096,-600.0,0.00024803,2]
[376532805,1754009444106,-180.17256131,0.00024831,2]
[376532808,1754009444116,-1013.91580697,0.00024831,2]
[376532810,1754009444126,-460.0,0.00024831,2]
[376532811,1754009444136,-500.0,0.00024873,2]
[376532814,1754009444145,-178.89,0.0002489,3]
[376532816,1754009444154,-536.72,0.0002489,3]
[376532818,1754009444165,-160.0,0.0002489,10]
[376532819,1754009444174,-312.16666667,0.0002489,10]
[376532821,1754009444184,-2583.9,0.0002489,10]
[376532823,1754009444194,-200.0,0.00024899,2]
[376532825,1754009444204,-160.0,0.00024899,2]
[376532828,1754009444214,-481.73932213,0.00024899,2]
[376532829,1754009444224,-500.0,0.00024899,2]
[376532832,1754009444235,-500.0,0.00024899,2]
[376532834,1754009444246,-515.87447087,0.00024899,2]
[376532836,1754009444261,-33227.02,0.000249,2]
[376532838,1754009444272,-45872.31558954,0.000249,2]
[376532840,1754009444287,-94804.30844946,0.000249,2]
[376532842,1754009444297,-299.01473573,0.00024999,2]
[376532844,1754009444309,-460.0,0.00025105,2]
[376532846,1754009444318,-800.0,0.00025112,2]
[376532848,1754009444329,-150.0,0.00025166,2]
[376532850,1754009444338,-180.17256127,0.00025208,2]
[376532852,1754009444348,-168.0,0.00025316,2]
[376532854,1754009444359,-472.34,0.00025379,2]
[376532856,1754009444369,-832.25,0.000255,7]
[376532858,1754009444379,-180.17256127,0.00025585,2]
[376532860,1754009444389,-1013.91580695,0.00025585,2]
[376532862,1754009444398,-159.20699372,0.00025644,2]
[376532864,1754009444408,-500.0,0.00025753,4]
[376532866,1754009444417,-151.0,0.00025896,7]
[376532868,1754009444427,-200.0,0.00025897,15]
[376532870,1754009444437,-200.0,0.00025897,15]
[376532872,1754009444447,-200.0,0.00025897,15]
[376532874,1754009444456,-200.0,0.00025897,15]
[376532876,1754009444466,-200.0,0.00025897,15]
[376532878,1754009444476,-200.0,0.00025897,15]
[376532880,1754009444486,-200.0,0.00025897,15]
[376532882,1754009444497,-200.0,0.00025897,15]
[376532884,1754009444515,-200.0,0.00025897,15]
[376532886,1754009444526,-394.0,0.00025897,15]
[376532888,1754009444536,-180.17256127,0.00025962,2]
[376532891,1754009444546,-162.0,0.00026,7]
[376532893,1754009444557,-162.0,0.00026,5]
[376532895,1754009444569,-357.78,0.0002626,3]
[376532897,1754009444581,-151.0,0.00026302,2]
[376532899,1754009444592,-151.0,0.00026302,2]
[376532901,1754009444602,-500.0,0.00026302,2]
[376532903,1754009444612,-202.8168749,0.00026302,2]
[376532905,1754009444622,-500.0,0.00026302,2]
[376532907,1754009444631,-180.17256127,0.00026339,2]
[376532909,1754009444645,-3995.53005249,0.00026339,2]
[376532912,1754009444654,-185.58995736,0.00026339,2]
[376532914,1754009444675,-1013.91580695,0.00026339,2]
[376532916,1754009444687,-179.84993846,0.00026373,2]
[376532918,1754009444697,-140676.624039,0.00026379,2]
[376532920,1754009444707,-158.734422,0.00026389,2]
[376532922,1754009444719,-500.0,0.00026389,2]
[376532924,1754009444728,-500.0,0.00026389,2]
[376532926,1754009444738,-500.0,0.00026389,2]
[376532929,1754009444747,-500.0,0.00026389,2]
[376532931,1754009444763,-500.0,0.00026389,2]
[376532933,1754009444773,-500.0,0.00026389,2]
[376532935,1754009444784,-500.0,0.00026389,2]
[376532937,1754009444794,-500.0,0.00026389,2]
[376532939,1754009444805,-500.0,0.00026389,2]
[376532941,1754009444815,-500.0,0.00026389,2]
[376532943,1754009444825,-500.0,0.00026389,2]
[376532945,1754009444835,-500.0,0.00026389,2]
[376532947,1754009444845,-500.0,0.00026389,2]
[376532949,1754009444856,-500.0,0.00026389,2]
[376532951,1754009444866,-500.0,0.00026389,2]
[376532953,1754009444877,-62478.86085778,0.0002639,2]
[376532956,1754009444890,-11515.0,0.0002639,2]
[376533060,1754009446091,-460.0,0.00021917,2]
[376533062,1754009446101,-174.02,0.00022191,2]
[376533064,1754009446111,-12046.77293419,0.0002639,2]
[376533122,1754009446709,-1114.85641408,0.0002639,2]
[376533125,1754009446722,-1449.95054208,0.0002639,2]
[376533127,1754009446735,-302.0,0.0002639,2]
[376535591,1754009485873,253.676207,0.00013699,2]
[376535595,1754009944207,-460.0,0.00019178,2]
[376535596,1754009944233,-150.0,0.00019725,2]
[376535598,1754010366084,223.12,0.00023,30]
[376535599,1754010432139,-460.0,0.00019178,2]
[376535600,1754010432163,-355.0,0.00019998,2]
[376535601,1754010432185,-226.49065854,0.00019999,2]
[376535602,1754010432208,-460.0,0.00019999,2]
[376535603,1754010432229,-556.71,0.0002,2]
[376535604,1754010432251,-253.676207,0.00020187,2]
[376535605,1754010432275,-841.37753757,0.00020285,2]
[376535606,1754010432299,-300.0,0.00020397,2]
[376535607,1754010432323,-200.0,0.00020398,15]
[376535608,1754010432346,-200.0,0.00020398,15]
[376535609,1754010432374,-200.0,0.00020398,15]
[376535610,1754010432402,-200.0,0.00020398,15]
[376535611,1754010432430,-200.0,0.00020398,15]
[376535612,1754010432454,-150.0,0.000209,2]
[376535613,1754010432480,-420.0,0.00022201,2]
[376535614,1754010432510,-407.0,0.0002237,2]
[376535615,1754010432545,-200.0,0.00022394,15]
[376535616,1754010432574,-200.0,0.00022394,15]
[376535617,1754010432602,-200.0,0.00022394,15]
[376535618,1754010432630,-200.0,0.00022394,15]
[376535619,1754010432659,-200.0,0.00022394,15]
[376535620,1754010432686,-200.0,0.00022394,15]
[376535621,1754010432715,-200.0,0.00022394,15]
[376535622,1754010432741,-160.0,0.00023,2]
[376535623,1754010432771,-2759.7033303,0.00023145,2]
[376535624,1754010432797,-1000.0,0.00023422,2]
[376535625,1754010432822,-587.0,0.00024165,2]
[376535626,1754010432846,-200.0,0.00024586,15]
[376535627,1754010432873,-200.0,0.00024586,15]
[376535628,1754010432899,-200.0,0.00024586,15]
[376535629,1754010432924,-200.0,0.00024586,15]
[376535630,1754010432949,-200.0,0.00024586,15]
[376535631,1754010432978,-200.0,0.00024586,15]
[376535632,1754010433009,-200.0,0.00024586,15]
[376535633,1754010433036,-200.0,0.00024586,15]
[376535634,1754010433061,-358.0,0.00024586,15]
[376535635,1754010433081,-500.0,0.00024899,2]
[376535636,1754010433108,-150.0,0.00025085,2]
[376535637,1754010433132,-460.0,0.0002537,2]
[376535638,1754010433155,-460.0,0.0002537,2]
[376535639,1754010433178,-460.0,0.0002537,2]
[376535640,1754010433199,-407.0,0.0002537,2]
[376535641,1754010433221,-159.20699373,0.00025644,2]
[376535642,1754010433246,-460.0,0.00025644,2]
[376535643,1754010433277,-460.0,0.00025918,2]
[376535644,1754010433305,-608.53,0.00026192,2]
[376535645,1754010433332,-823.0,0.00026302,2]
[376535646,1754010433355,-500.0,0.00026389,2]
[376535647,1754010433379,-500.0,0.00026389,2]
[376535648,1754010433402,-151.0,0.0002639,2]
[376535649,1754010433426,-460.0,0.00026399,2]
[376535650,1754010433448,-460.0,0.00026399,2]
[376535651,1754010433470,-460.0,0.00026399,2]
[376535652,1754010433492,-460.0,0.00026399,2]
[376535653,1754010433514,-460.0,0.00026399,2]
[376535654,1754010433541,-460.0,0.00026399,2]
[376535655,1754010433565,-460.0,0.00026399,2]
[376535656,1754010433588,-460.0,0.00026399,2]
[376535657,1754010433611,-460.0,0.00026399,2]
[376535658,1754010433634,-460.0,0.00026399,2]
[376535659,1754010433659,-460.0,0.00026399,2]
[376535660,1754010433681,-460.0,0.00026399,2]
[376535661,1754010433703,-460.0,0.00026399,2]
[376535662,1754010433724,-460.0,0.00026399,2]
[376535663,1754010433745,-460.0,0.00026399,2]
[376535664,1754010433765,-554.46401392,0.00026399,2]
[376535665,1754010433789,-460.0,0.00026399,2]
[376535666,1754010433811,-2000.0,0.000264,2]
[376535667,1754010433834,-610.0,0.00026424,3]
[376535668,1754010433854,-526.848153,0.00026424,10]
[376535669,1754010433876,-1926.13,0.00026424,10]
[376535670,1754010433897,-3331.29,0.00026424,10]
[376535671,1754010433920,-500.0,0.00026433,2]
[376535672,1754010433942,-500.0,0.00026433,2]
[376535673,1754010433968,-500.0,0.00026433,2]
[376535674,1754010433992,-500.0,0.00026433,2]
[376535675,1754010434015,-500.0,0.00026433,2]
[376535676,1754010434044,-500.0,0.00026433,2]
[376535677,1754010434067,-500.0,0.00026433,2]
[376535678,1754010434091,-500.0,0.00026433,2]
[376535679,1754010434114,-500.0,0.00026433,2]
[376535680,1754010434138,-500.0,0.00026433,2]
[376535681,1754010434164,-500.0,0.00026433,2]
[376535682,1754010434188,-500.0,0.00026433,2]
[376535683,1754010434213,-500.0,0.00026433,2]
[376535684,1754010434249,-500.0,0.00026433,2]
[376535685,1754010434279,-402.26757231,0.00026433,2]
[376535686,1754010434306,-500.0,0.00026433,2]
[376535687,1754010434334,-500.0,0.00026433,2]
[376535688,1754010434363,-500.0,0.00026433,2]
[376535689,1754010434389,-500.0,0.00026433,2]
[376535690,1754010434414,-500.0,0.00026433,2]
[376535691,1754010434436,-500.0,0.00026433,2]
[376535692,1754010434461,-500.0,0.00026433,2]
[376535693,1754010434487,-600.0,0.00026433,2]
[376535694,1754010434515,-168.43049676,0.00026433,2]
[376535695,1754010434547,-1997.95867606,0.00026434,2]
[376535696,1754010434575,-151.0,0.00026434,7]
[376535697,1754010434600,-151.0,0.00026434,7]
[376535698,1754010434627,-151.0,0.00026434,7]
[376535699,1754010434651,-3018.743711,0.00026434,2]
[376535700,1754010434675,-160.0,0.00026434,7]
[376535701,1754010434698,-319.03535462,0.00026434,7]
[376535702,1754010434719,-312.16666667,0.00026434,10]
[376535703,1754010434741,-312.16666667,0.00026434,30]
[376535704,1754010434764,-526.848153,0.00026434,30]
[376535705,1754010434801,-151.0,0.00026436,7]
[376535706,1754010434826,-151.0,0.00026436,7]
[376535707,1754010434850,-151.0,0.00026438,15]
[376535708,1754010434876,-151.0,0.00026439,7]
[376535709,1754010434901,-12396.57832909,0.00026447,7]
[376535710,1754010434924,-1550.6,0.00026468,7]
[376535711,1754010434947,-122163.589598,0.0002649,2]
[376535712,1754010434976,-154.36734,0.00026494,2]
[376535713,1754010434999,-1914.82,0.000265,7]
[376535714,1754010435031,-1388.52210262,0.000265,7]
[376535715,1754010459239,228.308586,0.00013699,2]
[376535832,1754010635614,-501.04,0.0002,2]
[376535833,1754010635624,-43.1701284,0.0002,3]
[376535834,1754010635636,-116.8298716,0.0002,3]
[376535835,1754010635645,-160.0,0.0002,3]
[376535836,1754010635655,-160.0,0.0002,3]
[376535837,1754010635664,-228.308586,0.00020187,2]
[376535838,1754010635674,-159.20699373,0.00025699,2]
[376535839,1754010635683,-160.0,0.0002642,2]
[376535840,1754010635696,-2776.07,0.00026424,10]
[376535841,1754010635705,-2313.4,0.00026424,10]
[376535842,1754010635715,-1927.83,0.00026424,10]
[376535843,1754010635724,-300.0,0.00026433,2]
[376535844,1754010635733,-998.97933803,0.00026434,2]
[376535845,1754010635743,-160.0,0.00026434,2]
[376535846,1754010635752,-500.0,0.00026434,7]
[376535847,1754010635762,-500.0,0.00026434,2]
[376535848,1754010635772,-160.0,0.00026434,7]
[376535850,1754010635781,-160.0,0.00026434,7]
[376535852,1754010635791,-160.0,0.00026434,10]
[376535853,1754010635800,-17686.87521064,0.00026434,20]
[376535854,1754010635812,-2503.93924703,0.00026434,20]
[376535860,1754010635865,-809.77192445,0.00026434,20]
[376535862,1754010635876,-572.5,0.00026434,20]
[376535864,1754010635888,-2699.81882852,0.00026434,20]
[376535866,1754010635900,-573.12619719,0.00026434,20]
[376535869,1754010635912,-55052.5205019,0.00026434,20]
[376535914,1754010638645,-336292.42078454,0.00026434,20]
[376535915,1754010638657,-2218.95198197,0.00026434,20]
[376535916,1754010638668,-1682.89262413,0.00026434,20]
[376535917,1754010638680,-600.34235271,0.00026434,20]
[376535918,1754010638870,-128591.29639547,0.00026434,20]
[376535919,1754010638880,-678663.30852176,0.00026434,20]
[376535920,1754010638892,-574499.99999995,0.00026434,20]
[376535921,1754010638904,-9164.0,0.00026434,20]
[376535922,1754010638916,-343500.0,0.00026434,20]
[376535991,1754010640287,-57500.0,0.00026434,20]
[376536003,1754010640404,-114567.3616219,0.00026434,20]
[376536508,1754010643736,-1606.52,0.00026424,10]
[376536510,1754010643746,-30392.63882779,0.00026434,20]
[376536513,1754010643759,-435.42961996,0.00026434,20]
[376536515,1754010643770,-2345.77917193,0.00026434,20]
[376536776,1754010646231,-460.0,0.00026398,2]
[376536778,1754010646241,-460.0,0.00026433,2]
[376536780,1754010646250,-12855.77433929,0.00026434,20]
[376536844,1754010647267,-73755.41631107,0.00026434,20]
[376536846,1754010647280,-1436295.00000032,0.00026434,20]
[376536849,1754010647293,-631.49601373,0.00026434,20]
[376539034,1754010830643,-2214.04229677,0.00028,120]
[376539035,1754010830665,-206.5,0.00028,120]
[376539036,1754010830713,-293.5,0.00028,120]
[376539037,1754010830734,-109.18164,0.00028,120]
[376539038,1754010830781,-97.31836,0.00028,120]
[376539039,1754010830803,-151.0,0.000285,120]
[376539040,1754010830827,-200.0,0.0002877,120]
[376539041,1754010830852,-200.0,0.0002877,120]
[376539042,1754010830876,-359.54694283,0.00029041,120]
[376539043,1754010830929,-1084.45305717,0.00029041,120]
[376539044,1754010830951,-202.61189,0.000292,120]
[376539045,1754010830975,-200.06975,0.000292,120]
[376539046,1754010830998,-201.53061,0.000294,120]
[376539047,1754010831021,-438.12614,0.000294,120]
[376539048,1754010831043,-183.35443323,0.000294,120]
[376539049,1754010831138,-991.75369677,0.000294,120]
[376539050,1754010831203,-151.0,0.000297,120]
[376539051,1754010831226,-49.0,0.0003,120]
[376539053,1754011100117,614.7005699,0.00029041,120]
[376539059,1754011532132,-460.0,0.00019178,2]
[376539060,1754011532158,-460.0,0.00019178,2]
[376539061,1754011532184,-460.0,0.00019452,2]
[376539062,1754011532209,-460.0,0.00019452,2]
[376539063,1754011532235,-460.0,0.00019726,2]
[376539064,1754011532260,-460.0,0.00019726,2]
[376539065,1754011532284,-1321.733418,0.00019726,2]
[376539066,1754011532309,-300.0,0.00019839,2]
[376539067,1754011532343,-200.0,0.0001984,15]
[376539068,1754011532370,-200.0,0.0001984,15]
[376539069,1754011532403,-200.0,0.0001984,15]
[376539070,1754011532430,-200.0,0.0001984,15]
[376539071,1754011532454,-450.94,0.0002,2]
[376539072,1754011532482,-460.0,0.0002,2]
[376539073,1754011532508,-160.0,0.0002,3]
[376539074,1754011532531,-160.0,0.0002,3]
[376539075,1754011532557,-460.0,0.0002,2]
[376539076,1754011532583,-460.0,0.00020273,2]
[376539077,1754011532611,-460.0,0.00020273,2]
[376539078,1754011532637,-477.98093204,0.00020547,2]
[376539079,1754011532667,-460.0,0.00020547,2]
[376539080,1754011532694,-460.0,0.00020821,2]
[376539081,1754011532721,-460.0,0.00021095,2]
[376539082,1754011532747,-465.89,0.00021369,2]
[376539083,1754011532773,-420.0,0.00021606,2]
[376539084,1754011532803,-200.0,0.00021784,15]
[376539085,1754011532834,-200.0,0.00021784,15]
[376539086,1754011532862,-200.0,0.00021784,15]
[376539087,1754011532895,-200.0,0.00021784,15]
[376539088,1754011532924,-320.0,0.00021784,15]
[376539089,1754011532949,-460.0,0.00022395,2]
[376539090,1754011532974,-460.0,0.00022395,2]
[376539091,1754011532998,-460.0,0.00022395,2]
[376539092,1754011533028,-460.0,0.00022395,2]
[376539093,1754011533053,-460.0,0.00022395,2]
[376539094,1754011533079,-518.18,0.00022395,2]
[376539095,1754011533103,-460.0,0.00022395,2]
[376539096,1754011533127,-460.0,0.00022395,2]
[376539097,1754011533154,-460.0,0.00022395,2]
[376539098,1754011533178,-460.0,0.00022395,2]
[376539099,1754011533201,-460.0,0.00022395,2]
[376539100,1754011533225,-460.0,0.00022395,2]
[376539101,1754011533253,-460.0,0.00022395,2]
[376539102,1754011533279,-460.0,0.00022395,2]
[376539103,1754011533304,-536.36,0.00022395,2]
[376539104,1754011533333,-460.0,0.00022395,2]
[376539105,1754011533360,-460.0,0.00022395,2]
[376539106,1754011533386,-257.23559786,0.00022395,2]
[376539107,1754011533416,-460.0,0.00022395,2]
[376539108,1754011533441,-460.0,0.00022395,2]
[376539109,1754011533466,-460.0,0.00022395,2]
[376539110,1754011533491,-460.0,0.00022395,2]
[376539111,1754011533517,-460.0,0.00022395,2]
[376539112,1754011533543,-460.0,0.00022395,2]
[376539113,1754011533566,-460.0,0.00022395,2]
[376539114,1754011533593,-460.0,0.00022395,2]
[376539115,1754011533619,-460.0,0.00022395,2]
[376539116,1754011533649,-607.53,0.00022395,2]
[376539117,1754011533674,-460.0,0.00022395,2]
[376539118,1754011533700,-460.0,0.00022395,2]
[376539119,1754011533725,-460.0,0.00022395,2]
[376539120,1754011533751,-460.0,0.00022395,2]
[376539121,1754011533776,-460.0,0.00022395,2]
[376539122,1754011533803,-460.0,0.00022395,2]
[376539123,1754011533832,-460.0,0.00022395,2]
[376539124,1754011533861,-460.0,0.00022395,2]
[376539125,1754011533892,-460.0,0.00022395,2]
[376539126,1754011533920,-460.0,0.00022395,2]
[376539127,1754011533949,-460.0,0.00022395,2]
[376539128,1754011533978,-460.0,0.00022395,2]
[376539129,1754011534007,-495.7,0.00022669,2]
[376539130,1754011534035,-211.48,0.00022669,2]
[376539131,1754011534065,-460.0,0.00022669,2]
[376539132,1754011534092,-460.0,0.00022669,2]
[376539133,1754011534117,-448.39,0.00022669,2]
[376539134,1754011534147,-460.0,0.00022669,2]
[376539135,1754011534173,-582.85,0.00022669,2]
[376539136,1754011534198,-359.44,0.00022669,2]
[376539137,1754011534224,-460.0,0.00022669,2]
[376539138,1754011534251,-460.0,0.00022669,2]
[376539139,1754011534276,-460.0,0.00022669,2]
[376539140,1754011534302,-460.0,0.00022669,2]
[376539141,1754011534331,-460.0,0.00022669,2]
[376539142,1754011534358,-460.0,0.00022669,2]
[376539143,1754011534387,-460.0,0.00022669,2]
[376539144,1754011534418,-460.0,0.00022669,2]
[376539145,1754011534444,-460.0,0.00022669,2]
[376539146,1754011534468,-497.42,0.00022669,2]
[376539147,1754011534494,-460.0,0.00022669,2]
[376539148,1754011534524,-460.0,0.00022943,2]
[376539149,1754011534549,-175.57,0.00022943,2]
[376539150,1754011534578,-460.0,0.00022943,2]
[376539151,1754011534607,-460.0,0.00022943,2]
[376539152,1754011534634,-163.55,0.00022943,2]
[376539153,1754011534664,-460.0,0.00022943,2]
[376539154,1754011534690,-508.95,0.00022943,2]
[376539155,1754011534716,-460.0,0.00022943,2]
[376539156,1754011534741,-460.0,0.00022943,2]
[376539157,1754011534765,-446.82,0.00022943,2]
[376539158,1754011534792,-460.0,0.00023217,2]
[376539159,1754011534818,-460.0,0.00023217,2]
[376539160,1754011534848,-460.0,0.00023217,2]
[376539161,1754011534873,-179.51,0.00023217,2]
[376539162,1754011534906,-460.0,0.00023217,2]
[376539163,1754011534932,-495.50634329,0.00023217,2]
[376539164,1754011535170,-155.01340075,0.00023401,3]
[376539165,1754011535198,-460.0,0.00023491,2]
[376539166,1754011535225,-460.0,0.00023491,2]
[376539167,1754011535253,-460.0,0.00023491,2]
[376539168,1754011535280,-460.0,0.00023491,2]
[376539169,1754011535303,-587.0,0.0002353,2]
[376539170,1754011535333,-460.0,0.00023765,2]
[376539171,1754011535360,-460.0,0.00023765,2]
[376539172,1754011535389,-460.0,0.00023765,2]
[376539173,1754011535423,-460.0,0.00023765,2]
[376539174,1754011535453,-200.0,0.00023919,15]
[376539175,1754011535483,-200.0,0.00023919,15]
[376539176,1754011535510,-200.0,0.00023919,15]
[376539177,1754011535540,-200.0,0.00023919,15]
[376539178,1754011535570,-200.0,0.00023919,15]
[376539179,1754011535598,-200.0,0.00023919,15]
[376539180,1754011535625,-366.0,0.00023919,15]
[376539181,1754011535655,-460.0,0.00024039,2]
[376539182,1754011535682,-460.0,0.00024039,2]
[376539183,1754011535711,-460.0,0.00024039,2]
[376539184,1754011535740,-280.59,0.00024039,2]
[376539185,1754011535768,-460.0,0.00024313,2]
[376539186,1754011535797,-460.0,0.00024313,2]
[376539187,1754011535824,-194.6357767,0.00024313,2]
[376539188,1754011535850,-466.81,0.00024382,2]
[376539189,1754011535874,-460.0,0.00024382,2]
[376539190,1754011535901,-460.0,0.00024382,2]
[376539191,1754011535923,-460.0,0.00024382,2]
[376539192,1754011535946,-460.0,0.00024382,2]
[376539193,1754011535968,-469.80580821,0.00024382,2]
[376539194,1754011535990,-460.0,0.00024382,2]
[376539195,1754011536011,-460.0,0.00024382,2]
[376539196,1754011536033,-460.0,0.00024382,2]
[376539197,1754011536055,-460.0,0.00024382,2]
[376539198,1754011536077,-460.0,0.00024382,2]
[376539199,1754011536101,-460.0,0.00024382,2]
[376539200,1754011536123,-496.72,0.00024382,2]
[376539201,1754011536146,-465.8,0.00024382,2]
[376539202,1754011536169,-460.0,0.00024382,2]
[376539203,1754011536191,-580.79,0.00024382,2]
[376539204,1754011536333,-460.0,0.00024382,2]
[376539205,1754011536358,-302.31676619,0.00024382,2]